[Event "*** SCC Grand Prix: Titled Tuesday Blitz"]
[Site "Chess.com"]
[Date "2020.06.09"]
[Round "4"]
[White "MF1966Idrisov"]
[Black "chessplayer9919"]
[Result "0-1"]
[WhiteElo "2282"]
[BlackElo "2523"]
[TimeControl "180+1"]
[EndTime "9:37:20 PDT"]
[Termination "chessplayer9919 won by resignation"]

1. Nf3 {[%clk 0:03:00.9]} 1... d5 {[%clk 0:02:59.8]} 2. b3 {[%clk 0:03:01]} 2...
c5 {[%clk 0:02:59.4]} 3. Bb2 {[%clk 0:03:01.4]} 3... Nc6 {[%clk 0:03:00.3]} 4.
e3 {[%clk 0:03:01.6]} 4... Bd7 {[%clk 0:03:00.2]} 5. d4 {[%clk 0:03:02.1]} 5...
Nf6 {[%clk 0:02:54.4]} 6. Bd3 {[%clk 0:03:01]} 6... e6 {[%clk 0:02:53]} 7. Nbd2
{[%clk 0:03:00.9]} 7... Bd6 {[%clk 0:02:53]} 8. O-O {[%clk 0:03:01.1]} 8... O-O
{[%clk 0:02:52.8]} 9. Ne5 {[%clk 0:03:00.8]} 9... Qc7 {[%clk 0:02:50]} 10. f4
{[%clk 0:02:46.8]} 10... cxd4 {[%clk 0:02:49.6]} 11. exd4 {[%clk 0:02:40.2]}
11... Nb4 {[%clk 0:02:49.3]} 12. Ndf3 {[%clk 0:02:32.6]} 12... Nxd3 {[%clk
0:02:40.7]} 13. Qxd3 {[%clk 0:02:32.3]} 13... Ne4 {[%clk 0:02:37.2]} 14. Nd2
{[%clk 0:02:21.1]} 14... f5 {[%clk 0:02:29.1]} 15. Ndf3 {[%clk 0:02:21]} 15...
b5 {[%clk 0:02:05.9]} 16. Rac1 {[%clk 0:02:08.2]} 16... b4 {[%clk 0:02:03.4]}
17. Nxd7 {[%clk 0:02:02.6]} 17... Qxd7 {[%clk 0:02:02.9]} 18. c4 {[%clk
0:02:02.6]} 18... bxc3 {[%clk 0:02:02.4]} 19. Bxc3 {[%clk 0:02:02.2]} 19... Bxf4
{[%clk 0:02:02.9]} 20. Rc2 {[%clk 0:01:58.6]} 20... Rac8 {[%clk 0:01:57.9]} 21.
Bb4 {[%clk 0:01:57.7]} 21... Rxc2 {[%clk 0:01:51.8]} 22. Qxc2 {[%clk 0:01:57.5]}
22... Be3+ {[%clk 0:01:52]} 23. Kh1 {[%clk 0:01:55.3]} 23... Qb5 {[%clk
0:01:52.1]} 24. Re1 {[%clk 0:01:10.4]} 24... Nf2+ {[%clk 0:01:30.6]} 25. Kg1
{[%clk 0:01:09.8]} 25... Ng4+ {[%clk 0:01:25.7]} 26. Kh1 {[%clk 0:01:09]} 26...
Qxb4 {[%clk 0:01:18.5]} 27. h3 {[%clk 0:01:09]} 27... Nf2+ {[%clk 0:01:18.3]}
28. Kg1 {[%clk 0:01:05]} 28... f4 {[%clk 0:01:13.1]} 0-1

[Event "*** SCC Grand Prix: Titled Tuesday Blitz"]
[Site "Chess.com"]
[Date "2020.06.09"]
[Round "4"]
[White "GM_Buhmann"]
[Black "2L8IWUN"]
[Result "0-1"]
[WhiteElo "2732"]
[BlackElo "2557"]
[TimeControl "180+1"]
[EndTime "9:37:21 PDT"]
[Termination "2L8IWUN won by resignation"]

1. Nf3 {[%clk 0:03:00.9]} 1... d5 {[%clk 0:02:58]} 2. d4 {[%clk 0:03:00.5]} 2...
Nf6 {[%clk 0:02:57.2]} 3. c4 {[%clk 0:03:01]} 3... e6 {[%clk 0:02:57.3]} 4. Nc3
{[%clk 0:03:00.4]} 4... Nbd7 {[%clk 0:02:57.8]} 5. cxd5 {[%clk 0:02:57.5]} 5...
exd5 {[%clk 0:02:58.7]} 6. Bf4 {[%clk 0:02:57.1]} 6... c6 {[%clk 0:02:35.2]} 7.
e3 {[%clk 0:02:56.2]} 7... Nh5 {[%clk 0:02:33.3]} 8. Be5 {[%clk 0:02:52.1]} 8...
Nxe5 {[%clk 0:02:30]} 9. Nxe5 {[%clk 0:02:52.2]} 9... g6 {[%clk 0:02:23.5]} 10.
Bd3 {[%clk 0:02:48.8]} 10... Be7 {[%clk 0:02:21.3]} 11. O-O {[%clk 0:02:48]}
11... O-O {[%clk 0:02:18.1]} 12. Rb1 {[%clk 0:02:45.7]} 12... a5 {[%clk
0:02:09.6]} 13. a3 {[%clk 0:02:45.6]} 13... Ng7 {[%clk 0:02:09.8]} 14. b4 {[%clk
0:02:44.6]} 14... axb4 {[%clk 0:02:10.7]} 15. axb4 {[%clk 0:02:44.9]} 15... Bf5
{[%clk 0:02:11.3]} 16. b5 {[%clk 0:02:42.6]} 16... c5 {[%clk 0:02:09.8]} 17.
Bxf5 {[%clk 0:02:36.1]} 17... Nxf5 {[%clk 0:02:07.5]} 18. dxc5 {[%clk
0:02:35.9]} 18... Bxc5 {[%clk 0:02:04.2]} 19. Qxd5 {[%clk 0:02:28.3]} 19... Qe7
{[%clk 0:01:56.4]} 20. Nf3 {[%clk 0:02:21.6]} 20... Bxe3 {[%clk 0:01:41.1]} 21.
Rfe1 {[%clk 0:01:51.9]} 21... Rfd8 {[%clk 0:01:19.1]} 22. Qe5 {[%clk 0:01:48.3]}
22... Qxe5 {[%clk 0:01:16.3]} 23. Nxe5 {[%clk 0:01:48.2]} 23... Bd2 {[%clk
0:01:16.6]} 24. Ne4 {[%clk 0:01:43.9]} 24... Bxe1 {[%clk 0:01:16]} 25. Rxe1
{[%clk 0:01:44.8]} 25... Kg7 {[%clk 0:01:08.5]} 26. Nc5 {[%clk 0:01:44.3]} 26...
Rd5 {[%clk 0:01:06]} 27. Nxb7 {[%clk 0:01:42.4]} 27... Re8 {[%clk 0:01:04.5]}
28. f4 {[%clk 0:01:41.6]} 28... f6 {[%clk 0:01:01.6]} 29. Nf3 {[%clk 0:01:40]}
29... Rxe1+ {[%clk 0:00:59.4]} 30. Nxe1 {[%clk 0:01:40.9]} 30... Rxb5 {[%clk
0:00:57.6]} 31. Nd8 {[%clk 0:01:41.4]} 31... Rb6 {[%clk 0:00:55.6]} 32. g4
{[%clk 0:01:38.2]} 32... Nd4 {[%clk 0:00:53.4]} 33. Kf2 {[%clk 0:01:36.2]} 33...
Kf8 {[%clk 0:00:50.5]} 0-1

[Event "*** SCC Grand Prix: Titled Tuesday Blitz"]
[Site "Chess.com"]
[Date "2020.06.09"]
[Round "4"]
[White "Luibov_AN"]
[Black "Bubachess1608"]
[Result "0-1"]
[WhiteElo "2111"]
[BlackElo "2301"]
[TimeControl "180+1"]
[EndTime "9:37:23 PDT"]
[Termination "Bubachess1608 won by resignation"]

1. d4 {[%clk 0:03:00.9]} 1... Nf6 {[%clk 0:02:49.2]} 2. c4 {[%clk 0:02:29.3]}
2... e6 {[%clk 0:02:45.2]} 3. Nf3 {[%clk 0:02:23.1]} 3... c5 {[%clk 0:02:43.7]}
4. Nc3 {[%clk 0:02:23]} 4... cxd4 {[%clk 0:02:42]} 5. Nxd4 {[%clk 0:02:23.9]}
5... a6 {[%clk 0:02:40.8]} 6. e3 {[%clk 0:02:22.4]} 6... Qc7 {[%clk 0:02:39.8]}
7. b3 {[%clk 0:02:22]} 7... Bb4 {[%clk 0:02:35.2]} 8. Bb2 {[%clk 0:02:21.7]}
8... d5 {[%clk 0:02:35.3]} 9. Rc1 {[%clk 0:02:21.4]} 9... dxc4 {[%clk
0:02:34.5]} 10. Bxc4 {[%clk 0:02:21.3]} 10... O-O {[%clk 0:02:31.3]} 11. Bd3
{[%clk 0:02:21.1]} 11... Nc6 {[%clk 0:02:29.2]} 12. O-O {[%clk 0:02:21.3]} 12...
e5 {[%clk 0:02:27.1]} 13. Nf5 {[%clk 0:02:12.7]} 13... Bxf5 {[%clk 0:02:24.9]}
14. Bxf5 {[%clk 0:02:10.4]} 14... Rad8 {[%clk 0:02:25.3]} 15. Qf3 {[%clk
0:02:07.1]} 15... Qe7 {[%clk 0:02:18]} 16. Qh3 {[%clk 0:02:01.6]} 16... g6
{[%clk 0:02:16.7]} 17. Bb1 {[%clk 0:02:00.8]} 17... Rd2 {[%clk 0:02:09]} 18. Ba1
{[%clk 0:01:53.3]} 18... Rfd8 {[%clk 0:02:07.1]} 19. Qh4 {[%clk 0:01:44.2]}
19... Qe6 {[%clk 0:01:43]} 20. h3 {[%clk 0:01:32.2]} 20... Ba3 {[%clk
0:01:42.3]} 21. Rce1 {[%clk 0:01:29.9]} 21... Be7 {[%clk 0:01:41.5]} 22. Qa4
{[%clk 0:01:29.2]} 22... Nb4 {[%clk 0:01:28.4]} 23. Ne4 {[%clk 0:01:21]} 23...
Nxe4 {[%clk 0:01:24.6]} 24. Bxe4 {[%clk 0:01:21.9]} 24... Nc2 {[%clk 0:01:21.6]}
25. Bxc2 {[%clk 0:01:14.2]} 25... Rxc2 {[%clk 0:01:20.9]} 26. Qa5 {[%clk
0:01:11.5]} 26... Rc5 {[%clk 0:01:13.3]} 27. Qb6 {[%clk 0:01:09]} 27... Qxb6
{[%clk 0:01:11]} 0-1

[Event "*** SCC Grand Prix: Titled Tuesday Blitz"]
[Site "Chess.com"]
[Date "2020.06.09"]
[Round "4"]
[White "Enriquack"]
[Black "Panterov"]
[Result "1-0"]
[WhiteElo "2413"]
[BlackElo "2146"]
[TimeControl "180+1"]
[EndTime "9:37:27 PDT"]
[Termination "Enriquack won by resignation"]

1. e4 {[%clk 0:03:00.9]} 1... d6 {[%clk 0:02:59.5]} 2. d4 {[%clk 0:03:01]} 2...
g6 {[%clk 0:02:59.7]} 3. Nf3 {[%clk 0:02:55.2]} 3... Bg7 {[%clk 0:02:59.9]} 4.
Bc4 {[%clk 0:02:54.9]} 4... Nf6 {[%clk 0:02:59.4]} 5. Qe2 {[%clk 0:02:50.6]}
5... O-O {[%clk 0:02:57.2]} 6. O-O {[%clk 0:02:49.9]} 6... a6 {[%clk 0:02:57.3]}
7. e5 {[%clk 0:02:46.5]} 7... dxe5 {[%clk 0:02:51.3]} 8. dxe5 {[%clk 0:02:46.3]}
8... Nd5 {[%clk 0:02:51.6]} 9. h3 {[%clk 0:02:43.4]} 9... b5 {[%clk 0:02:40.9]}
10. Bb3 {[%clk 0:02:42.4]} 10... Bb7 {[%clk 0:02:41.3]} 11. Rd1 {[%clk
0:02:35.3]} 11... e6 {[%clk 0:02:41.1]} 12. Bg5 {[%clk 0:02:29.7]} 12... Qc8
{[%clk 0:02:39.3]} 13. Nbd2 {[%clk 0:02:21]} 13... h6 {[%clk 0:02:38.9]} 14. Bh4
{[%clk 0:02:18.4]} 14... Nd7 {[%clk 0:02:27.3]} 15. Ne4 {[%clk 0:02:12.5]} 15...
Nxe5 {[%clk 0:02:08.2]} 16. Nxe5 {[%clk 0:01:50]} 16... Bxe5 {[%clk 0:02:09.1]}
17. Bxd5 {[%clk 0:01:50.3]} 17... Bxd5 {[%clk 0:02:02.3]} 18. Nf6+ {[%clk
0:01:49.9]} 18... Bxf6 {[%clk 0:02:01.7]} 19. Bxf6 {[%clk 0:01:50.8]} 19... Kh7
{[%clk 0:01:51.8]} 20. Rd4 {[%clk 0:01:47.9]} 20... Qb7 {[%clk 0:01:20]} 21. Qe3
{[%clk 0:01:43.2]} 21... h5 {[%clk 0:01:07.6]} 22. Rh4 {[%clk 0:01:25.4]} 22...
Bxg2 {[%clk 0:01:04.5]} 23. Rxh5+ {[%clk 0:01:14]} 23... gxh5 {[%clk 0:00:57.6]}
24. Qg5 {[%clk 0:01:12.5]} 1-0

[Event "*** SCC Grand Prix: Titled Tuesday Blitz"]
[Site "Chess.com"]
[Date "2020.06.09"]
[Round "4"]
[White "EvgenyRomanov"]
[Black "TigranMukhutdinov"]
[Result "1-0"]
[WhiteElo "2666"]
[BlackElo "2472"]
[TimeControl "180+1"]
[EndTime "9:37:34 PDT"]
[Termination "EvgenyRomanov won by resignation"]

1. Nf3 {[%clk 0:03:00.9]} 1... Nf6 {[%clk 0:02:59.6]} 2. b3 {[%clk 0:03:00.2]}
2... g6 {[%clk 0:02:59.6]} 3. Bb2 {[%clk 0:03:00.2]} 3... Bg7 {[%clk 0:03:00.2]}
4. e3 {[%clk 0:02:59.9]} 4... O-O {[%clk 0:02:58.1]} 5. d4 {[%clk 0:02:59.4]}
5... b6 {[%clk 0:02:57.8]} 6. c4 {[%clk 0:02:56.5]} 6... Bb7 {[%clk 0:02:58]} 7.
Be2 {[%clk 0:02:56.4]} 7... d5 {[%clk 0:02:54.3]} 8. O-O {[%clk 0:02:51.5]} 8...
e6 {[%clk 0:02:53]} 9. Nc3 {[%clk 0:02:48.9]} 9... Nbd7 {[%clk 0:02:51.3]} 10.
Rc1 {[%clk 0:02:42.2]} 10... c5 {[%clk 0:02:49.2]} 11. cxd5 {[%clk 0:02:41.7]}
11... Nxd5 {[%clk 0:02:48.3]} 12. Nxd5 {[%clk 0:02:38.5]} 12... Bxd5 {[%clk
0:02:47]} 13. Qd2 {[%clk 0:02:33.1]} 13... Rc8 {[%clk 0:02:43.1]} 14. Rfd1
{[%clk 0:02:22.9]} 14... cxd4 {[%clk 0:02:42.2]} 15. Rxc8 {[%clk 0:02:18.8]}
15... Qxc8 {[%clk 0:02:42.3]} 16. Bxd4 {[%clk 0:02:10.9]} 16... Bxd4 {[%clk
0:02:41.4]} 17. Nxd4 {[%clk 0:02:11.8]} 17... Qb7 {[%clk 0:02:21.8]} 18. f3
{[%clk 0:02:11.2]} 18... e5 {[%clk 0:02:22]} 19. Nb5 {[%clk 0:02:09.1]} 19...
Be6 {[%clk 0:02:16.8]} 20. Rc1 {[%clk 0:02:01.3]} 20... a6 {[%clk 0:01:46.2]}
21. Nc7 {[%clk 0:01:35.4]} 21... Nc5 {[%clk 0:01:39.7]} 22. Qd6 {[%clk
0:01:30.1]} 22... Qb8 {[%clk 0:01:29.5]} 23. b4 {[%clk 0:01:09.8]} 23... Rd8
{[%clk 0:01:16.2]} 24. Qxe5 {[%clk 0:01:06.1]} 24... Nd3 {[%clk 0:01:08.2]} 25.
Bxd3 {[%clk 0:01:04.7]} 25... Rxd3 {[%clk 0:01:09.1]} 26. Nxe6 {[%clk
0:00:55.2]} 1-0

[Event "*** SCC Grand Prix: Titled Tuesday Blitz"]
[Site "Chess.com"]
[Date "2020.06.09"]
[Round "4"]
[White "amatatanav"]
[Black "DenLaz"]
[Result "0-1"]
[WhiteElo "2424"]
[BlackElo "2640"]
[TimeControl "180+1"]
[EndTime "9:37:36 PDT"]
[Termination "DenLaz won on time"]

1. e4 {[%clk 0:03:00.9]} 1... e5 {[%clk 0:02:59.2]} 2. Bc4 {[%clk 0:03:00.5]}
2... Nf6 {[%clk 0:02:58.5]} 3. d3 {[%clk 0:03:00.2]} 3... Bc5 {[%clk 0:02:56.8]}
4. Nc3 {[%clk 0:02:54.1]} 4... d6 {[%clk 0:02:54]} 5. f4 {[%clk 0:02:42.5]} 5...
O-O {[%clk 0:02:49.3]} 6. Nf3 {[%clk 0:02:40.2]} 6... c6 {[%clk 0:02:48.8]} 7.
fxe5 {[%clk 0:01:40]} 7... dxe5 {[%clk 0:02:49.7]} 8. Bg5 {[%clk 0:01:35.6]}
8... Qd6 {[%clk 0:02:44]} 9. Qd2 {[%clk 0:01:30.1]} 9... b5 {[%clk 0:02:39.9]}
10. Bb3 {[%clk 0:01:29.5]} 10... Nbd7 {[%clk 0:02:39.8]} 11. O-O-O {[%clk
0:01:10.7]} 11... a5 {[%clk 0:02:29.9]} 12. a4 {[%clk 0:01:03.2]} 12... Bb4
{[%clk 0:02:24]} 13. Kb1 {[%clk 0:00:43.8]} 13... Nc5 {[%clk 0:02:20.8]} 14.
axb5 {[%clk 0:00:21.4]} 14... a4 {[%clk 0:02:18.3]} 15. Ba2 {[%clk 0:00:17.6]}
15... a3 {[%clk 0:02:17.9]} 16. d4 {[%clk 0:00:09.5]} 16... Ncxe4 {[%clk
0:02:12.9]} 17. Nxe4 {[%clk 0:00:06.1]} 17... Nxe4 {[%clk 0:02:13.8]} 18. Qe3
{[%clk 0:00:05.4]} 18... Nxg5 {[%clk 0:02:05.4]} 19. dxe5 {[%clk 0:00:05.7]}
19... Qc7 {[%clk 0:02:00.1]} 20. Nxg5 {[%clk 0:00:06]} 20... axb2 {[%clk
0:01:54.8]} 21. Qb3 {[%clk 0:00:04.1]} 21... Rxa2 {[%clk 0:01:47]} 22. Qxa2
{[%clk 0:00:03.8]} 22... h6 {[%clk 0:01:43.2]} 23. Ne4 {[%clk 0:00:01.7]} 23...
Be6 {[%clk 0:01:42.4]} 0-1

[Event "*** SCC Grand Prix: Titled Tuesday Blitz"]
[Site "Chess.com"]
[Date "2020.06.09"]
[Round "4"]
[White "VALPARAISO37"]
[Black "Flawless_Fighter"]
[Result "1-0"]
[WhiteElo "2406"]
[BlackElo "2602"]
[TimeControl "180+1"]
[EndTime "9:37:50 PDT"]
[Termination "VALPARAISO37 won by resignation"]

1. d4 {[%clk 0:03:00.9]} 1... Nf6 {[%clk 0:02:59.6]} 2. c4 {[%clk 0:03:00.9]}
2... e6 {[%clk 0:02:59.9]} 3. Nc3 {[%clk 0:03:01.1]} 3... d5 {[%clk 0:02:59.8]}
4. Bg5 {[%clk 0:03:00.4]} 4... h6 {[%clk 0:02:47.4]} 5. Bxf6 {[%clk 0:02:59.7]}
5... Qxf6 {[%clk 0:02:48.3]} 6. cxd5 {[%clk 0:03:00]} 6... exd5 {[%clk
0:02:38.3]} 7. Nxd5 {[%clk 0:02:59.8]} 7... Qd6 {[%clk 0:02:38.2]} 8. e4 {[%clk
0:02:59.3]} 8... c6 {[%clk 0:02:37.1]} 9. Nc3 {[%clk 0:02:58.8]} 9... g6 {[%clk
0:02:28.6]} 10. h3 {[%clk 0:02:57.6]} 10... Bg7 {[%clk 0:02:29]} 11. Nf3 {[%clk
0:02:57]} 11... O-O {[%clk 0:02:29.3]} 12. Bc4 {[%clk 0:02:46.5]} 12... b5
{[%clk 0:02:28.3]} 13. Bb3 {[%clk 0:02:46.2]} 13... b4 {[%clk 0:02:28.8]} 14.
Ne2 {[%clk 0:02:44.3]} 14... a5 {[%clk 0:02:26.4]} 15. O-O {[%clk 0:02:41.9]}
15... Ba6 {[%clk 0:02:23.4]} 16. Rc1 {[%clk 0:02:36.5]} 16... Re8 {[%clk
0:02:09.5]} 17. e5 {[%clk 0:02:32.9]} 17... Qd7 {[%clk 0:01:56.9]} 18. Re1
{[%clk 0:02:27.3]} 18... Bb5 {[%clk 0:01:54.4]} 19. Nf4 {[%clk 0:02:25.8]} 19...
Qf5 {[%clk 0:01:45.1]} 20. Qd2 {[%clk 0:02:23.1]} 20... a4 {[%clk 0:01:09.3]}
21. g4 {[%clk 0:02:20.8]} 21... Qc8 {[%clk 0:01:05.4]} 22. Bd5 {[%clk
0:02:15.3]} 22... Qa6 {[%clk 0:00:59.1]} 23. Be4 {[%clk 0:02:02.2]} 23... Nd7
{[%clk 0:00:52]} 24. e6 {[%clk 0:02:02.3]} 24... Nf8 {[%clk 0:00:52.4]} 25.
exf7+ {[%clk 0:02:00.8]} 25... Kxf7 {[%clk 0:00:53.3]} 26. Qxb4 {[%clk
0:01:54.8]} 26... Rad8 {[%clk 0:00:44.2]} 27. Qc3 {[%clk 0:01:41]} 27... Rd6
{[%clk 0:00:39.5]} 28. Qc2 {[%clk 0:01:40.6]} 28... Rde6 {[%clk 0:00:37.9]} 29.
Ne5+ {[%clk 0:01:38.9]} 29... Bxe5 {[%clk 0:00:37.2]} 30. dxe5 {[%clk
0:01:38.9]} 30... Rxe5 {[%clk 0:00:33.9]} 31. Bxg6+ {[%clk 0:01:37.4]} 31... Kg7
{[%clk 0:00:22.6]} 32. Nh5+ {[%clk 0:01:36.4]} 32... Kh8 {[%clk 0:00:21.4]} 33.
Bxe8 {[%clk 0:01:30.7]} 1-0

[Event "*** SCC Grand Prix: Titled Tuesday Blitz"]
[Site "Chess.com"]
[Date "2020.06.09"]
[Round "4"]
[White "eljanov"]
[Black "BlackBoarder"]
[Result "1-0"]
[WhiteElo "2822"]
[BlackElo "2649"]
[TimeControl "180+1"]
[EndTime "9:37:53 PDT"]
[Termination "eljanov won by resignation"]

1. e4 {[%clk 0:03:00.9]} 1... e6 {[%clk 0:03:00]} 2. d4 {[%clk 0:03:00.5]} 2...
d5 {[%clk 0:03:00.2]} 3. e5 {[%clk 0:03:00.8]} 3... c5 {[%clk 0:03:00.3]} 4. c3
{[%clk 0:03:01]} 4... Nc6 {[%clk 0:03:00.1]} 5. Nf3 {[%clk 0:03:01.5]} 5... Bd7
{[%clk 0:03:00.6]} 6. Be2 {[%clk 0:02:59.9]} 6... f6 {[%clk 0:03:00.6]} 7. O-O
{[%clk 0:02:58.7]} 7... fxe5 {[%clk 0:03:01]} 8. Nxe5 {[%clk 0:02:54.2]} 8...
Nxe5 {[%clk 0:03:01]} 9. dxe5 {[%clk 0:02:54.6]} 9... Qc7 {[%clk 0:03:01.2]} 10.
Bf4 {[%clk 0:02:49.4]} 10... O-O-O {[%clk 0:03:00.3]} 11. a4 {[%clk 0:02:39.7]}
11... Ne7 {[%clk 0:02:45.2]} 12. Na3 {[%clk 0:02:36.8]} 12... a6 {[%clk
0:02:21]} 13. Nb5 {[%clk 0:02:29.5]} 13... axb5 {[%clk 0:02:20.8]} 14. axb5
{[%clk 0:02:29.7]} 14... Qb6 {[%clk 0:02:15.8]} 15. c4 {[%clk 0:02:29.5]} 15...
dxc4 {[%clk 0:02:04]} 16. Ra8+ {[%clk 0:02:25.5]} 16... Kc7 {[%clk 0:02:03.5]}
17. Qd6+ {[%clk 0:02:25.1]} 17... Qxd6 {[%clk 0:02:03.8]} 18. exd6+ {[%clk
0:02:25.4]} 18... Kb6 {[%clk 0:02:03.2]} 19. Rxd8 {[%clk 0:02:24.6]} 19... Ng6
{[%clk 0:02:02.7]} 20. Rxd7 {[%clk 0:02:19.5]} 20... Nxf4 {[%clk 0:02:02.2]} 21.
Bxc4 {[%clk 0:02:20.1]} 21... g5 {[%clk 0:01:48.8]} 22. g3 {[%clk 0:01:59.2]}
22... Ng6 {[%clk 0:01:00.6]} 23. Re1 {[%clk 0:01:58.2]} 23... e5 {[%clk
0:00:56.2]} 24. Bd5 {[%clk 0:01:55.5]} 24... Ka5 {[%clk 0:00:36.5]} 25. Ra1+
{[%clk 0:01:50.4]} 25... Kb4 {[%clk 0:00:32.9]} 26. b6 {[%clk 0:01:49.8]} 26...
c4 {[%clk 0:00:26]} 27. Ra8 {[%clk 0:01:43.1]} 27... Kc5 {[%clk 0:00:24.3]} 28.
Be4 {[%clk 0:01:41.1]} 28... Bxd6 {[%clk 0:00:18.6]} 29. Rxh8 {[%clk 0:01:39.1]}
29... Nxh8 {[%clk 0:00:19.5]} 30. Rxh7 {[%clk 0:01:39.4]} 30... Kxb6 {[%clk
0:00:16.6]} 31. Rxh8 {[%clk 0:01:38.8]} 31... Bc5 {[%clk 0:00:16.8]} 32. Rh7
{[%clk 0:01:37.8]} 32... Bd4 {[%clk 0:00:17.1]} 33. Rxb7+ {[%clk 0:01:37.6]}
33... Kc5 {[%clk 0:00:17.7]} 34. h4 {[%clk 0:01:36.7]} 34... gxh4 {[%clk
0:00:18.1]} 35. gxh4 {[%clk 0:01:37.1]} 35... c3 {[%clk 0:00:17.7]} 36. bxc3
{[%clk 0:01:37]} 1-0

[Event "*** SCC Grand Prix: Titled Tuesday Blitz"]
[Site "Chess.com"]
[Date "2020.06.09"]
[Round "4"]
[White "stolencandy13"]
[Black "Zurability"]
[Result "1/2-1/2"]
[WhiteElo "2491"]
[BlackElo "2681"]
[TimeControl "180+1"]
[EndTime "9:37:53 PDT"]
[Termination "Game drawn by repetition"]

1. e4 {[%clk 0:03:00.9]} 1... c5 {[%clk 0:02:59.5]} 2. Nf3 {[%clk 0:03:00.4]}
2... d6 {[%clk 0:02:59.9]} 3. d4 {[%clk 0:02:59.7]} 3... cxd4 {[%clk 0:03:00.8]}
4. Nxd4 {[%clk 0:03:00.2]} 4... Nf6 {[%clk 0:03:01]} 5. Nc3 {[%clk 0:03:00.1]}
5... a6 {[%clk 0:03:00.4]} 6. h3 {[%clk 0:03:00]} 6... e5 {[%clk 0:02:58.6]} 7.
Nde2 {[%clk 0:03:00]} 7... h5 {[%clk 0:02:57.6]} 8. g3 {[%clk 0:02:58.2]} 8...
Be7 {[%clk 0:02:49]} 9. Bg2 {[%clk 0:02:56.8]} 9... b5 {[%clk 0:02:47.6]} 10.
Bg5 {[%clk 0:02:56.7]} 10... Nbd7 {[%clk 0:02:45.8]} 11. Bxf6 {[%clk 0:02:55]}
11... Nxf6 {[%clk 0:02:45.4]} 12. Nd5 {[%clk 0:02:55.7]} 12... Nxd5 {[%clk
0:02:31.5]} 13. Qxd5 {[%clk 0:02:55.5]} 13... Be6 {[%clk 0:02:31.7]} 14. Qd2
{[%clk 0:02:47.8]} 14... h4 {[%clk 0:02:27.7]} 15. g4 {[%clk 0:02:46.5]} 15...
Bg5 {[%clk 0:02:18]} 16. f4 {[%clk 0:02:41.2]} 16... exf4 {[%clk 0:02:15.2]} 17.
Nxf4 {[%clk 0:02:39.8]} 17... Qf6 {[%clk 0:01:29.8]} 18. O-O {[%clk 0:02:17.8]}
18... Qxb2 {[%clk 0:01:25]} 19. Qxd6 {[%clk 0:02:14.5]} 19... Rd8 {[%clk
0:01:24.3]} 20. Qc6+ {[%clk 0:02:14.9]} 20... Bd7 {[%clk 0:01:23.9]} 21. Qd5
{[%clk 0:02:11.7]} 21... Bxf4 {[%clk 0:01:21.6]} 22. Rxf4 {[%clk 0:02:07.1]}
22... Qxa1+ {[%clk 0:01:15]} 23. Rf1 {[%clk 0:02:06.3]} 23... Qxf1+ {[%clk
0:01:12.7]} 24. Bxf1 {[%clk 0:02:00.9]} 24... O-O {[%clk 0:01:13.6]} 25. Bd3
{[%clk 0:01:59.2]} 25... Be6 {[%clk 0:01:10]} 26. Qg5 {[%clk 0:01:56.5]} 26...
Bxa2 {[%clk 0:01:07.2]} 27. e5 {[%clk 0:01:53.7]} 27... Bc4 {[%clk 0:01:01.4]}
28. Bf5 {[%clk 0:01:44.5]} 28... Rd1+ {[%clk 0:00:57.8]} 29. Kh2 {[%clk
0:01:43.6]} 29... Rfd8 {[%clk 0:00:57.7]} 30. Qxh4 {[%clk 0:01:39.7]} 30... g6
{[%clk 0:00:47.2]} 31. Qg5 {[%clk 0:01:38.3]} 31... Kf8 {[%clk 0:00:29.5]} 32.
Qh6+ {[%clk 0:01:33.6]} 32... Kg8 {[%clk 0:00:25.7]} 33. Qg5 {[%clk 0:01:32.3]}
33... Kh7 {[%clk 0:00:18.6]} 34. Qh4+ {[%clk 0:01:28]} 34... Kg7 {[%clk
0:00:18.6]} 35. Qf6+ {[%clk 0:01:28.2]} 35... Kg8 {[%clk 0:00:16.1]} 36. Qg5
{[%clk 0:01:28.3]} 1/2-1/2

[Event "*** SCC Grand Prix: Titled Tuesday Blitz"]
[Site "Chess.com"]
[Date "2020.06.09"]
[Round "4"]
[White "kot60"]
[Black "korbul"]
[Result "1/2-1/2"]
[WhiteElo "2357"]
[BlackElo "2514"]
[TimeControl "180+1"]
[EndTime "9:37:55 PDT"]
[Termination "Game drawn by repetition"]

1. e4 {[%clk 0:02:51.1]} 1... c5 {[%clk 0:02:59.4]} 2. Nc3 {[%clk 0:02:50.6]}
2... Nc6 {[%clk 0:02:58.8]} 3. Bc4 {[%clk 0:02:50.4]} 3... e6 {[%clk 0:02:58.6]}
4. d3 {[%clk 0:02:50.2]} 4... a6 {[%clk 0:02:58.9]} 5. a4 {[%clk 0:02:49.7]}
5... Nf6 {[%clk 0:02:59]} 6. Nge2 {[%clk 0:02:49.2]} 6... d5 {[%clk 0:02:59.2]}
7. exd5 {[%clk 0:02:49.3]} 7... exd5 {[%clk 0:02:59.1]} 8. Bb3 {[%clk
0:02:49.3]} 8... Be6 {[%clk 0:02:58.3]} 9. O-O {[%clk 0:02:48.6]} 9... Bd6
{[%clk 0:02:55.5]} 10. h3 {[%clk 0:02:46.8]} 10... O-O {[%clk 0:02:55.2]} 11.
Bg5 {[%clk 0:02:46]} 11... h6 {[%clk 0:02:54.6]} 12. Bxf6 {[%clk 0:02:44.8]}
12... Qxf6 {[%clk 0:02:51.1]} 13. Bxd5 {[%clk 0:02:44.3]} 13... Bxd5 {[%clk
0:02:50.4]} 14. Nxd5 {[%clk 0:02:44.1]} 14... Qe5 {[%clk 0:02:44.1]} 15. Nef4
{[%clk 0:02:36.3]} 15... g5 {[%clk 0:02:40.5]} 16. Re1 {[%clk 0:02:35.2]} 16...
Qxb2 {[%clk 0:02:14]} 17. Nh5 {[%clk 0:02:26.5]} 17... Be5 {[%clk 0:01:36.4]}
18. Qf3 {[%clk 0:02:14.8]} 18... f5 {[%clk 0:01:18.7]} 19. Rab1 {[%clk
0:02:07.5]} 19... Qd4 {[%clk 0:01:14.1]} 20. Rxb7 {[%clk 0:02:02.2]} 20... Rae8
{[%clk 0:01:05.8]} 21. Kf1 {[%clk 0:01:51.1]} 21... g4 {[%clk 0:00:59.5]} 22.
Ndf6+ {[%clk 0:01:16.5]} 22... Bxf6 {[%clk 0:00:54.1]} 23. Qxc6 {[%clk
0:01:14.4]} 23... Rxe1+ {[%clk 0:00:50]} 24. Kxe1 {[%clk 0:01:13.6]} 24... Qe5+
{[%clk 0:00:42.2]} 25. Kf1 {[%clk 0:01:10.2]} 25... Qa1+ {[%clk 0:00:41.3]} 26.
Ke2 {[%clk 0:01:08.9]} 26... Qe5+ {[%clk 0:00:41.2]} 27. Kf1 {[%clk 0:00:51.1]}
27... Qa1+ {[%clk 0:00:40.7]} 28. Ke2 {[%clk 0:00:51.1]} 28... Qe5+ {[%clk
0:00:40.3]} 29. Kf1 {[%clk 0:00:50.9]} 1/2-1/2